bitfinex/quotes_ETHUSD_20250112
["timestamp","ask_amount","ask_price","bid_price","bid_amount"]
[1736693345372,0.07923277,3273.1,3272.5,0.7784]
[1736693347469,2.8106135,3273.3,3272.5,0.7784]
[1736693347679,0.07977887,3273.0,3272.5,0.7784]
[1736693347876,2.8106135,3273.3,3272.5,1.070149]
[1736693348076,0.07977887,3272.9,3272.5,0.7784]
[1736693348408,0.07977887,3272.8,3272.5,0.7784]
[1736693348900,0.07977887,3272.7,3272.5,0.7784]
[1736693349398,2.8106135,3273.3,3272.5,0.7784]
[1736693349597,0.07977887,3273.2,3272.6,0.55]
[1736693349926,0.07977887,3273.2,3272.7,0.7759]
[1736693355506,0.07977887,3273.2,3273.0,0.8225]
[1736693355701,2.55642251,3273.4,3273.0,1.173633]
[1736693355905,0.07697146,3273.1,3273.0,1.723633]
[1736693356219,2.77142251,3273.8,3273.1,1.3725]
[1736693356379,2.77142251,3273.8,3273.2,0.8225]
[1736693356981,0.215,3273.8,3273.2,0.8225]
[1736693357497,2.95107851,3273.9,3273.2,0.8225]
[1736693358390,2.13819,3273.8,3273.2,0.8225]
[1736693358600,2.47148588,3273.8,3273.2,0.8225]
[1736693359006,0.33329588,3273.8,3273.2,0.8225]
[1736693359321,0.81293851,3273.9,3273.2,0.8225]
[1736693359973,0.215,3273.9,3273.2,0.8225]
[1736693360919,0.215,3273.9,3273.2,3.8225]
[1736693363937,0.25318247,3273.9,3273.2,3.8225]
[1736693365542,0.215,3273.9,3273.2,3.8225]
[1736693366109,2.95415951,3274.0,3273.2,3.8225]
[1736693366304,2.95415951,3274.0,3273.2,4.473613]
[1736693367341,0.03818219,3273.9,3273.2,4.473613]
[1736693367503,2.95415951,3274.0,3273.2,4.473613]
[1736693371150,2.39126217,3274.0,3273.2,4.473613]
[1736693371349,0.07549014,3273.9,3273.2,4.473613]
[1736693371650,0.07549014,3273.9,3273.3,1.5216243]
[1736693372217,0.07549014,3273.9,3273.4,0.8054]
[1736693373649,0.07549014,3273.9,3273.5,0.55]
[1736693373844,0.215,3274.3,3273.6,0.8054]
[1736693374158,0.075535,3274.2,3273.6,0.8054]
[1736693383156,2.213465,3274.2,3273.6,0.8054]
[1736693383374,2.13793,3274.2,3273.6,0.8054]
[1736693383572,0.07340642,3274.1,3273.6,0.8054]
[1736693387344,0.215,3274.3,3273.6,0.7854]
[1736693387581,0.07340642,3274.0,3273.6,0.7854]
[1736693387755,0.215,3274.3,3273.6,0.7854]
[1736693387955,0.07340642,3273.9,3273.6,0.7854]
[1736693388157,0.215,3274.3,3273.6,0.7854]
[1736693388358,0.07340642,3273.8,3273.6,0.7854]
[1736693388557,0.215,3274.3,3273.6,1.432779]
[1736693388763,0.215,3274.3,3273.6,0.7854]
[1736693388977,0.07095954,3274.2,3273.6,0.7854]
[1736693390245,0.07095954,3274.2,3273.7,2.68824]
[1736693390484,2.13733,3275.1,3273.3,3.7162243]
[1736693390485,2.35262,3274.7,3274.0,0.7935]
[1736693390785,0.07101934,3274.1,3274.0,0.7935]
[1736693390992,0.07101934,3274.1,3274.0,1.086667]
[1736693391143,2.17579445,3274.7,3274.0,1.086667]
[1736693391344,2.13762,3274.7,3274.0,0.7935]
[1736693391541,0.07101934,3274.6,3274.0,0.7935]
[1736693393147,0.7645,3274.5,3273.4,2.15344]
[1736693393387,2.13792,3274.3,3273.5,0.7935]
[1736693393786,0.07132582,3274.2,3273.6,0.55]
[1736693394493,2.20925582,3274.2,3273.6,0.55]
[1736693396191,0.07132582,3274.2,3273.6,0.55]
[1736693396686,0.28632582,3274.2,3273.6,0.55]
[1736693396887,0.8147,3274.0,3273.5,0.7935]
[1736693397384,0.03818106,3273.9,3273.2,0.8234]
[1736693397588,2.13826,3273.7,3273.2,0.8234]
[1736693397884,0.8147,3273.5,3272.7,1.3734]
[1736693398052,0.8147,3273.5,3272.9,0.55]
[1736693398455,0.28611653,3273.4,3272.7,0.8234]
[1736693398811,2.42456653,3273.4,3272.7,0.8234]
[1736693399174,2.13852,3273.3,3272.7,0.8234]
[1736693399599,0.07091468,3273.2,3272.7,0.8234]
[1736693399797,0.07091468,3273.2,3272.7,1.20574]
[1736693400004,0.215,3273.4,3272.7,1.20574]
[1736693400375,0.07061558,3273.3,3272.8,0.55]
[1736693400711,0.07061558,3273.3,3272.9,0.8234]
[1736693401615,0.07061558,3273.3,3272.9,3.8234]
[1736693401816,0.07061558,3273.3,3273.0,0.651223]
[1736693403590,0.07061558,3273.3,3273.1,0.8234]
[1736693403991,0.215,3273.9,3273.1,0.8234]
[1736693404300,0.07015205,3273.8,3273.1,0.8234]
[1736693406414,0.03818352,3273.9,3273.1,0.8234]
[1736693406617,0.07015205,3273.7,3273.1,0.8234]
[1736693406818,0.35878287,3273.9,3273.1,0.8234]
[1736693407120,2.49691287,3273.9,3273.1,0.8234]
[1736693407322,0.07015205,3273.8,3273.1,0.8234]
[1736693407878,0.07015205,3273.8,3273.3,3.0]
[1736693408188,0.07015205,3273.8,3273.6,0.55]
[1736693408588,0.215,3274.3,3273.6,0.55]
[1736693408811,0.0703016,3273.7,3273.6,0.55]
[1736693409010,3.33182251,3274.5,3273.5,0.55]
[1736693409197,1.38322493,3274.7,3273.9,0.55]
[1736693409198,3.85771747,3274.7,3273.9,0.55]
[1736693409397,3.85771747,3274.7,3274.1,0.7758]
[1736693409398,0.0703016,3274.4,3274.1,0.7758]
[1736693409579,3.08231747,3274.7,3274.1,0.7758]
[1736693409580,2.55642251,3274.7,3274.1,0.7758]
[1736693409789,0.0703016,3274.3,3274.1,0.7758]
[1736693409987,0.215,3274.8,3274.1,0.7758]
[1736693410234,0.0703016,3274.2,3274.1,0.7758]
[1736693410402,0.215,3274.8,3274.1,0.7758]
[1736693410598,0.215,3274.8,3274.2,3.55]
[1736693410804,0.0703016,3274.7,3274.2,3.55]
[1736693411113,0.7754,3274.9,3274.2,3.55]
[1736693411432,0.0703016,3274.6,3274.2,3.55]
[1736693411628,0.7754,3274.9,3274.2,3.55]
[1736693411629,0.9904,3274.9,3274.2,3.55]
[1736693411802,0.0703016,3274.5,3274.2,3.55]
[1736693412003,0.9904,3274.9,3274.2,3.55]
[1736693412489,0.0703016,3274.8,3274.2,3.55]
[1736693416502,0.0703016,3274.8,3274.2,0.55]
[1736693417433,0.0703016,3274.8,3274.2,2.68792]
[1736693417742,0.0703016,3274.8,3274.4,0.808]
[1736693418028,0.215,3275.0,3274.4,0.808]
[1736693418206,0.0696924,3274.7,3274.4,0.808]
[1736693418407,0.812,3275.1,3274.4,0.808]
[1736693418895,0.0696924,3275.0,3274.4,0.808]
[1736693419905,0.215,3275.2,3274.4,0.808]
[1736693420116,0.0696924,3274.9,3274.4,0.808]
[1736693420432,0.215,3275.2,3274.4,0.808]
[1736693420633,0.0696924,3274.8,3274.4,0.808]
[1736693420926,0.0696924,3274.7,3274.4,0.808]
[1736693421134,0.0696924,3274.7,3274.4,1.157586]
[1736693421335,2.3904483,3275.2,3274.4,1.157586]
[1736693421534,0.0696924,3274.6,3274.4,0.808]
[1736693421737,2.3904483,3275.2,3274.4,0.808]
[1736693422031,0.0696924,3274.5,3274.4,0.808]
[1736693422207,2.3904483,3275.2,3274.4,0.808]
[1736693422397,0.0696924,3274.5,3274.4,0.808]
[1736693422598,2.13735,3275.1,3274.4,0.808]
[1736693422799,0.0696924,3274.5,3274.4,0.808]
[1736693423001,2.13735,3275.1,3274.4,0.808]
[1736693423222,0.0696924,3274.5,3274.4,0.808]
[1736693423707,2.13735,3275.1,3274.4,0.808]
[1736693423905,0.0696924,3274.5,3274.4,0.808]
[1736693424104,0.2531683,3275.2,3274.4,1.402591]
[1736693424305,0.0696924,3274.5,3274.4,1.402591]
[1736693424633,0.2531683,3275.2,3274.4,1.402591]
[1736693424992,0.0696924,3275.1,3274.4,3.540371]
[1736693425197,0.0696924,3275.1,3274.4,2.94578]
[1736693427407,0.0696924,3275.1,3274.4,0.808]
[1736693427599,2.13741,3275.0,3274.4,0.808]
[1736693427801,0.7928,3275.1,3274.4,0.808]
[1736693428099,2.13747,3274.9,3274.4,0.808]
[1736693428301,2.430497,3274.9,3274.4,0.808]
[1736693428692,0.06991653,3274.8,3274.4,0.808]
[1736693429338,2.96833062,3275.1,3274.4,0.808]
[1736693429539,0.06991653,3274.7,3274.4,0.808]
[1736693429832,2.96833062,3275.1,3274.4,0.808]
[1736693430020,0.06759345,3274.6,3274.4,0.808]
[1736693430221,2.51749019,3275.0,3274.4,0.808]
[1736693430424,0.06759345,3274.5,3274.4,0.808]
[1736693430615,0.38008019,3275.0,3274.4,0.808]
[1736693430798,0.06759345,3274.5,3274.4,0.808]
[1736693431000,2.13747,3274.9,3274.4,0.808]
[1736693431627,0.06759345,3274.8,3274.2,0.8106]
[1736693432441,0.12849286,3274.8,3274.2,0.8106]
[1736693433104,2.96832063,3275.1,3274.2,0.8106]
[1736693433304,0.12861241,3274.7,3274.2,0.8106]
[1736693433521,2.13745,3275.0,3274.2,0.8106]
[1736693434006,0.12861241,3274.9,3274.2,0.8106]
[1736693436143,0.12861241,3274.9,3274.3,2.13785]
[1736693436639,0.7928,3275.1,3274.3,2.13785]
[1736693436852,0.12861241,3274.8,3274.3,2.732695]
[1736693437047,0.8309683,3275.1,3274.3,2.732695]
[1736693437226,0.12861241,3274.7,3274.3,2.732695]
[1736693437545,0.12861241,3274.6,3274.3,0.594845]
[1736693437901,0.8309683,3275.1,3274.3,0.594845]
[1736693438107,0.12861241,3275.0,3274.3,0.594845]
[1736693438945,0.12861241,3275.0,3274.3,3.594845]
[1736693439700,0.12861241,3275.0,3274.2,0.8106]
[1736693439906,0.03816997,3274.9,3274.2,0.8106]
[1736693440346,0.12861241,3274.8,3274.2,0.8106]
[1736693440719,2.13743,3275.0,3274.2,0.8106]
[1736693440927,0.12861241,3274.7,3274.2,0.8106]
[1736693441126,2.17560054,3275.0,3274.2,1.942458]
[1736693441445,0.12861241,3274.6,3274.2,1.942458]
[1736693441611,2.17560054,3275.0,3274.2,1.942458]
[1736693441804,0.12861241,3274.5,3274.2,0.8106]
[1736693442007,0.03817054,3275.0,3274.2,0.8106]
[1736693442245,0.12861241,3274.4,3274.3,3.0]
[1736693442436,1.0078,3275.1,3274.3,2.13782]
[1736693442633,1.0078,3275.1,3274.4,2.13778]
[1736693442848,1.0078,3275.1,3274.5,0.8106]
[1736693442849,0.12852278,3275.0,3274.5,0.8106]
[1736693444920,0.12852278,3275.0,3274.4,0.213778]
[1736693445126,0.12852278,3275.0,3274.3,2.94844]
[1736693452981,0.12852278,3275.0,3274.4,2.13778]
[1736693457346,0.12852278,3275.0,3274.3,0.8106]
[1736693457649,0.12852278,3275.0,3274.3,3.8106]
[1736693458091,0.12852278,3275.0,3274.3,0.8106]
[1736693458295,0.12852278,3275.0,3274.3,3.58429926]
[1736693464329,0.832,3274.9,3274.1,3.0]
[1736693464552,0.96061241,3274.9,3274.1,3.0]
[1736693464688,0.832,3274.7,3274.1,3.0]
[1736693465089,0.03817234,3274.6,3274.0,2.54799263]
[1736693465288,0.8243,3274.4,3273.8,2.54799263]
[1736693465589,0.8243,3273.9,3273.8,2.54799263]
[1736693466022,0.8243,3273.8,3273.3,2.54799263]
[1736693466720,0.12841066,3273.7,3273.3,2.54799263]
[1736693466924,0.8243,3273.8,3273.1,2.13859]
[1736693467113,0.12817151,3273.7,3273.3,0.7814]
[1736693467284,0.8243,3273.8,3273.4,0.291996]
[1736693467712,0.12817151,3273.7,3273.4,0.291996]
[1736693467916,0.8243,3273.8,3273.4,0.291996]
[1736693468325,0.12815656,3273.7,3273.4,2.430426]
[1736693468536,0.8243,3274.1,3273.4,2.430426]
[1736693468731,0.8243,3274.1,3273.3,0.7814]
[1736693469436,1.0,3273.8,3273.3,0.7814]
[1736693469740,1.0,3273.8,3273.0,5.92009]
[1736693470238,0.12805939,3273.7,3273.0,5.92009]
[1736693470435,0.12805939,3273.7,3273.0,3.0]
[1736693470739,0.8074,3273.6,3273.0,3.0]
[1736693470941,1.33005577,3273.6,3273.0,3.0]
[1736693471511,0.93549677,3273.6,3273.0,3.0]
[1736693472125,0.93549677,3273.6,3272.9,5.13876]
[1736693472843,0.12809677,3273.6,3272.9,3.0]
[1736693473201,1.12809677,3273.6,3273.4,2.96203]
[1736693473401,1.12809677,3273.6,3273.2,2.13857]
[1736693473698,1.12809677,3273.6,3273.3,0.296217]
[1736693475501,1.12809677,3273.6,3273.2,2.13857]
[1736693475703,1.12809677,3273.6,3273.0,2.13864]
[1736693476124,1.12809677,3273.6,3272.9,0.8311]
[1736693476316,1.12809677,3273.6,3273.2,2.13857]
[1736693479223,2.12809677,3273.6,3273.2,2.13857]
[1736693479425,2.12809677,3273.6,3273.3,3.0]
[1736693481468,2.12809677,3273.6,3273.4,2.13844]
[1736693482351,3.12809677,3273.6,3273.4,2.13844]
[1736693482658,3.12809677,3273.6,3273.3,3.0]
[1736693483063,3.12809677,3273.6,3273.3,5.13849]
[1736693485882,3.12809677,3273.6,3273.3,6.2944247]
[1736693486182,3.12809677,3273.6,3273.4,2.13843]
[1736693486544,3.12809677,3273.6,3273.3,4.1559347]
[1736693486744,3.12809677,3273.6,3273.3,6.2944447]
[1736693487165,3.12809677,3273.6,3273.3,4.1559347]
[1736693487484,3.12809677,3273.6,3273.5,3.0]
[1736693492150,3.12809677,3273.6,3273.5,5.13838]
[1736693494089,3.12809677,3273.6,3273.4,3.41559347]
[1736693494389,0.7712,3273.5,3273.1,5.37]
[1736693494892,0.89857935,3273.5,3273.2,3.0]
[1736693496097,0.89857935,3273.5,3272.9,5.13875]
[1736693497291,0.89857935,3273.5,3273.0,2.1387]
[1736693497499,0.89857935,3273.5,3272.9,3.0]
[1736693497500,0.89857935,3273.5,3272.9,4.170059]
[1736693497667,0.12737935,3273.5,3273.3,2.1385]
[1736693498468,0.12737935,3273.5,3272.9,4.170059]
[1736693498660,0.12737935,3273.5,3273.1,2.13861]
[1736693498863,0.12737935,3273.5,3273.2,3.0]
[1736693499059,0.12737935,3273.5,3272.9,1.170059]
[1736693499060,0.7712,3273.5,3272.9,2.13872]
[1736693499282,0.80938529,3273.5,3272.8,3.0]
[1736693499473,0.7712,3273.5,3272.8,3.0]
[1736693499670,0.12720745,3273.4,3272.8,3.0]
[1736693499871,0.12720745,3273.4,3273.0,2.1387]
[1736693500087,0.12720745,3273.4,3273.1,2.13863]
[1736693501236,0.12720745,3273.4,3272.8,3.0]
[1736693501505,0.12720745,3273.4,3272.9,2.13876]
[1736693502406,0.12720745,3273.4,3272.8,5.13881]
[1736693502562,0.12720745,3273.4,3272.9,2.13877]
[1736693502998,0.12720745,3273.4,3273.0,2.1387]
[1736693503159,0.12720745,3273.4,3273.1,2.13862]
[1736693503364,0.12720745,3273.4,3272.9,3.0]
[1736693503365,0.12720745,3273.4,3273.0,0.8095]
[1736693503571,0.12720745,3273.4,3273.2,2.13856]
[1736693504180,0.12720745,3273.4,3273.0,0.8095]
[1736693504390,0.12720745,3273.4,3273.0,1.2993615]
[1736693504904,0.12720745,3273.4,3273.0,0.4898615]
[1736693505106,0.12720745,3273.4,3273.1,2.13864]
[1736693506862,0.12720745,3273.4,3273.0,0.4898615]
[1736693507068,0.12720745,3273.4,3272.9,2.13875]
[1736693508972,0.752,3273.3,3272.8,4.089115]
[1736693509173,0.752,3273.3,3272.8,6.227945]
[1736693509373,0.12696073,3273.2,3272.8,6.227945]
[1736693509600,0.752,3273.3,3272.8,6.227945]
[1736693510411,0.12696073,3273.2,3272.8,6.227945]
[1736693510575,0.12696073,3273.2,3272.9,1.1980285]
[1736693510770,0.752,3273.3,3272.9,1.1980285]
[1736693510997,0.12659438,3273.2,3272.9,1.1980285]
[1736693511406,0.752,3273.3,3272.9,1.1980285]
[1736693511768,0.12659438,3273.1,3272.9,1.1980285]
[1736693512086,0.752,3273.3,3272.9,1.1980285]
[1736693512611,0.12659438,3273.2,3272.9,1.1980285]
[1736693513013,0.752,3273.3,3272.9,1.1980285]
[1736693513172,0.12659438,3273.1,3272.9,1.1980285]
[1736693513597,0.752,3273.3,3272.9,1.1980285]
[1736693513815,0.12659438,3273.0,3272.9,1.1980285]
[1736693514310,0.752,3273.3,3272.9,1.1980285]
[1736693514469,0.752,3273.3,3272.8,5.13883]
[1736693514674,0.12659438,3273.2,3272.8,5.13883]
[1736693515094,0.752,3273.3,3272.8,3.0]
[1736693515299,0.752,3273.3,3272.7,5.37]
[1736693515497,0.12659438,3273.2,3272.7,5.37]
[1736693517781,0.7725,3273.1,3272.7,5.37]
[1736693518004,0.7725,3273.1,3272.4,2.13908]
[1736693518333,0.7725,3273.1,3272.2,2.54799263]
[1736693518334,0.12659438,3273.0,3272.2,2.1392]
[1736693518483,0.7725,3272.9,3272.3,2.13916]
[1736693518683,0.89898222,3272.9,3272.3,2.13916]
[1736693519978,0.89898222,3272.9,3272.2,4.50720302]
[1736693520197,0.89898222,3272.9,3272.4,2.1391]
[1736693520525,0.12648222,3272.9,3272.7,2.13885]
[1736693520907,0.8155,3273.1,3272.7,2.435005]
[1736693521118,0.12592132,3272.8,3272.5,2.13902]
[1736693521417,0.8155,3273.1,3272.5,2.13902]
[1736693521621,0.12597368,3272.7,3272.3,2.13914]
[1736693521788,0.8155,3273.1,3272.4,2.13909]
[1736693521991,0.12597368,3273.0,3272.2,5.1392]
[1736693522191,0.12597368,3273.0,3272.3,1.13319]
[1736693522721,0.8155,3272.9,3272.2,5.1392]
[1736693522888,0.8155,3272.9,3272.3,2.13914]
[1736693523314,0.12597368,3272.8,3272.4,2.13907]
[1736693523827,0.8155,3272.9,3272.4,2.13907]
[1736693524209,0.12597368,3272.8,3272.4,2.13907]
[1736693524415,0.8155,3272.9,3272.5,0.213907]
[1736693524721,0.12597368,3272.8,3272.5,0.213907]
[1736693525229,0.8155,3273.4,3272.5,1.036607]
[1736693525427,0.8155,3273.4,3272.5,0.8227]
[1736693525630,0.12599611,3273.3,3272.6,2.13896]
[1736693526184,0.12599611,3273.3,3272.6,5.13896]
[1736693528406,0.12599611,3273.3,3272.7,2.13889]
[1736693539139,0.12599611,3273.3,3272.8,2.13882]
[1736693539348,0.12599611,3273.3,3272.9,0.513882]
[1736693539645,0.12599611,3273.3,3272.8,2.13882]
[1736693540348,0.12599611,3273.3,3273.1,2.13859]
[1736693540532,0.12599611,3273.3,3273.2,2.13857]
[1736693540914,3.0,3273.6,3273.5,2.13838]
[1736693541211,3.12629524,3273.6,3273.5,2.13838]
[1736693541520,3.12629524,3273.6,3273.5,2.430768]
[1736693542245,3.12629524,3273.6,3273.5,10.815768]
[1736693542404,3.0,3273.6,3273.5,10.815768]
[1736693542610,3.0,3273.6,3273.5,11.608768]
[1736693543024,3.0,3273.6,3273.5,16.608768]
[1736693543536,3.0,3273.6,3273.5,14.990968]
[1736693544059,3.0,3273.6,3273.5,14.998468]
[1736693544271,3.0,3273.6,3273.5,15.548468]
[1736693544720,1.794333,3273.6,3273.5,24.348468]
[1736693545460,1.794333,3273.6,3273.5,26.89646063]
[1736693546058,1.794333,3273.6,3273.5,27.69946082]
[1736693546629,1.794333,3273.6,3273.5,24.50001526]
[1736693547244,1.794333,3273.6,3273.5,27.05776128]
[1736693547929,1.794333,3273.6,3273.5,24.50001526]
[1736693551369,1.794333,3273.6,3273.5,23.94251526]
[1736693551676,1.794333,3273.6,3273.5,23.73292526]
[1736693554311,1.794333,3273.6,3273.5,20.408768]
[1736693554602,1.794333,3273.6,3273.5,19.623268]
[1736693555400,2.582533,3273.6,3273.5,19.623268]
[1736693555698,2.582533,3273.6,3273.5,19.608268]
[1736693555900,2.582533,3273.6,3273.5,10.808268]
[1736693556891,2.582533,3273.6,3273.5,7.800768]
[1736693557106,2.582533,3273.6,3273.5,7.50838]
[1736693557982,2.582533,3273.6,3273.5,10.50838]
[1736693565734,3.582533,3273.6,3273.5,10.50838]
[1736693566422,3.582533,3273.6,3273.5,8.37]
[1736693567026,3.71026364,3273.6,3273.5,8.37]
[1736693567230,3.582533,3273.6,3273.5,8.37]
[1736693567890,4.582533,3273.6,3273.5,8.37]
[1736693568135,4.71026364,3273.6,3273.5,8.37]
[1736693568467,4.71026364,3273.6,3273.5,10.50838]
[1736693569733,5.71026364,3273.6,3273.5,10.50838]
[1736693572076,5.71026364,3273.6,3273.5,8.37]
[1736693574783,5.71026364,3273.6,3273.5,5.37]
[1736693576747,5.71026364,3273.6,3273.2,2.13855]
[1736693579294,5.71026364,3273.6,3273.3,3.0]
[1736693580069,5.71026364,3273.6,3273.3,2.13849]
[1736693580261,5.70646364,3273.6,3273.5,2.13838]
[1736693581776,4.92206364,3273.6,3273.5,5.95968]
[1736693581994,4.92206364,3273.6,3273.5,5.13838]
[1736693582205,4.92206364,3273.6,3273.5,5.652218]
[1736693582867,4.92206364,3273.6,3273.5,11.022218]
[1736693584399,4.92206364,3273.6,3273.5,8.883838]
[1736693584587,5.70646364,3273.6,3273.5,8.37]
[1736693584791,5.578733,3273.6,3273.5,8.37]
[1736693585108,5.70588061,3273.6,3273.5,8.37]
[1736693588587,4.92148061,3273.6,3273.5,10.50838]
[1736693588789,4.92148061,3273.6,3273.5,11.651318]
[1736693589124,4.794333,3273.6,3273.5,12.429818]
[1736693592623,4.794333,3273.6,3273.5,17.437318]
[1736693593416,4.794333,3273.6,3273.5,26.237318]
[1736693593892,4.794333,3273.6,3273.5,28.79506402]
[1736693595187,4.794333,3273.6,3273.5,29.40008639]
[1736693597288,4.794333,3273.6,3273.5,26.84234037]
[1736693600726,4.794333,3273.6,3273.5,30.04178593]
[1736693603546,4.794333,3273.6,3273.5,26.84234037]
[1736693605847,4.794333,3273.6,3273.5,24.97332037]
[1736693606742,4.794333,3273.6,3273.5,27.53430392]
[1736693607946,4.794333,3273.6,3273.5,24.97332037]
[1736693608908,4.794333,3273.6,3273.5,21.84234037]
[1736693609360,4.794333,3273.6,3273.5,24.40305305]
[1736693611420,4.794333,3273.6,3273.5,23.63205305]
[1736693612072,4.794333,3273.6,3273.5,21.07134037]
[1736693617756,4.794333,3273.6,3273.5,26.62134037]
[1736693617956,4.794333,3273.6,3273.5,25.83562037]
[1736693618462,4.794333,3273.6,3273.5,28.39633305]
[1736693618662,4.794333,3273.6,3273.5,19.59633305]
[1736693622943,4.794333,3273.6,3273.5,20.35183305]
[1736693623763,4.794333,3273.6,3273.5,20.99056593]
[1736693624679,4.794333,3273.6,3273.5,29.79056593]
[1736693631102,4.794333,3273.6,3273.5,26.59112037]
[1736693634780,4.794333,3273.6,3273.5,30.43045505]
[1736693634984,4.794333,3273.6,3273.5,26.59112037]
[1736693635407,4.794333,3273.6,3273.5,30.43045505]
[1736693636245,4.794333,3273.6,3273.5,26.59112037]
[1736693636881,4.794333,3273.6,3273.5,30.43045505]
[1736693638545,4.794333,3273.6,3273.5,29.67495505]
[1736693641784,4.794333,3273.6,3273.5,23.17021468]
[1736693641984,5.626533,3273.6,3273.5,23.14771468]
[1736693642289,5.75509311,3273.6,3273.5,11.34771468]
[1736693642475,5.75509311,3273.6,3273.5,14.34771468]
[1736693642783,5.75509311,3273.6,3273.5,13.71897625]
[1736693643184,5.626533,3273.6,3273.5,13.71897625]
[1736693643401,5.626533,3273.6,3273.5,8.37]
[1736693643684,6.3891863,3273.6,3273.5,5.37]
[1736693644050,6.51730557,3273.6,3273.5,5.37]
[1736693644473,5.68510557,3273.6,3273.2,2.568042]
[1736693644787,0.8322,3273.4,3273.0,2.568042]
[1736693645180,0.8322,3273.2,3273.1,3.0]
[1736693645566,0.95992315,3273.2,3272.8,5.13881]
[1736693647353,0.95992315,3273.2,3272.8,3.0]
[1736693648685,0.8322,3273.2,3272.8,3.0]
[1736693649281,0.8123,3273.0,3272.8,3.0]
[1736693651196,0.8123,3273.0,3272.4,0.015]
[1736693651490,0.8123,3273.0,3272.6,2.13896]
[1736693651852,0.12772315,3272.9,3272.6,2.13896]
[1736693652555,0.8167,3272.8,3272.6,2.13896]
[1736693652754,0.8167,3272.8,3272.4,3.0075]
[1736693652973,0.8167,3272.8,3272.7,2.1389]
[1736693658319,0.8167,3273.0,3272.9,2.13877]
[1736693658704,0.94336913,3273.0,3272.9,2.13877]
[1736693664457,0.12666913,3273.0,3272.9,2.13877]
[1736693664954,0.8167,3273.2,3272.7,0.807]
[1736693665157,0.12672894,3273.0,3272.9,2.13877]
[1736693665304,0.8167,3273.2,3272.9,2.13877]
[1736693665498,0.12679624,3273.1,3273.0,2.13865]
[1736693665699,0.12679624,3273.1,3273.0,2.16115]
[1736693665899,4.794333,3273.6,3273.0,5.71115]
[1736693665900,0.8315,3273.5,3273.0,5.71115]
[1736693666154,0.8315,3273.5,3273.4,2.13844]
[1736693667165,4.794333,3273.6,3273.5,10.53088]
[1736693670721,4.794333,3273.6,3273.5,11.08088]
[1736693671260,4.794333,3273.6,3273.5,11.08838]
[1736693673548,4.794333,3273.6,3273.5,10.52338]
[1736693673720,5.581933,3273.6,3273.5,8.37]
[1736693674824,5.70932105,3273.6,3273.5,8.37]
[1736693675574,5.70932105,3273.6,3273.5,3.0]
[1736693677829,0.7876,3273.5,3273.0,5.37]
[1736693678173,0.1271937,3273.4,3273.1,3.0]
[1736693678972,0.1271937,3273.4,3273.1,5.13864]
[1736693686776,0.7876,3273.5,3273.1,5.13864]
[1736693687271,0.12686473,3273.4,3273.1,5.13864]
[1736693693500,0.8256,3273.3,3273.1,5.13864]
[1736693694089,0.12686473,3273.2,3273.1,5.13864]
[1736693694788,0.8256,3273.3,3273.1,5.13864]
[1736693701201,0.8256,3273.3,3273.1,3.0]
[1736693701510,0.12664793,3273.2,3273.1,3.0]
[1736693701697,0.12664793,3273.2,3273.0,5.37]
[1736693702002,0.8256,3273.3,3273.0,5.37]
[1736693702163,0.12664793,3273.1,3273.0,8.37]
[1736693702369,0.8256,3273.3,3273.0,10.5087]
[1736693702992,5.619933,3273.6,3273.2,2.13857]
[1736693703500,0.12660307,3273.5,3273.2,2.13857]
[1736693703701,0.8256,3273.4,3273.2,2.13857]
[1736693703906,0.12660307,3273.5,3273.2,2.13857]
[1736693704204,5.619933,3273.6,3273.2,2.13857]
[1736693704696,0.12660307,3273.5,3273.2,2.13857]
[1736693706711,0.12660307,3273.5,3273.0,9.42087]
[1736693707014,0.12660307,3273.5,3273.1,2.13863]
[1736693707586,0.16479043,3273.5,3273.1,2.13863]
[1736693708323,0.7712,3273.4,3273.0,8.37]
[1736693708817,0.7712,3273.2,3273.0,8.37]
[1736693709512,0.12667037,3273.1,3273.0,8.37]
[1736693713819,0.12667037,3273.1,3273.0,5.37]
[1736693714331,0.7712,3273.2,3273.0,5.37]
[1736693714835,0.12654324,3273.1,3273.0,5.37]
[1736693715444,0.7712,3273.2,3273.0,5.37]
[1736693717148,0.7685,3273.0,3272.5,2.568042]
[1736693717442,0.7685,3272.8,3272.5,2.568042]
[1736693717605,0.0381971,3272.7,3272.5,2.568042]
[1736693717806,0.0381971,3272.7,3272.2,2.568042]
[1736693718019,0.7685,3272.6,3272.2,2.568042]
[1736693718251,0.03819971,3272.5,3272.2,2.568042]
[1736693718443,0.7685,3272.4,3272.2,2.568042]
[1736693718907,0.7685,3272.4,3272.0,6.39449204]
[1736693719504,0.7685,3272.4,3272.1,3.0]
[1736693722741,0.03820183,3272.3,3272.1,3.0]
[1736693723595,0.03820183,3272.3,3272.0,1.02449204]
[1736693727255,0.03820183,3272.3,3271.7,5.13954]
[1736693727412,0.03820183,3272.3,3271.7,6.265724]
[1736693729057,0.03820183,3272.3,3271.8,2.13948]
[1736693733049,0.8111,3272.2,3271.7,1.126184]
[1736693733256,0.03820572,3272.1,3271.7,1.126184]
[1736693733441,0.03820572,3272.1,3271.6,5.13959]
[1736693735751,0.03820572,3272.1,3271.9,2.13941]
[1736693735955,0.03820572,3272.5,3271.8,0.0075]
[1736693736262,0.03820572,3272.5,3272.0,2.13933]
[1736693736442,0.15458809,3272.4,3272.1,2.13928]
[1736693737161,0.03820093,3272.6,3272.1,2.13928]
[1736693737331,0.8111,3272.5,3271.9,2.13939]
[1736693737539,0.03820094,3272.4,3271.9,2.13939]
[1736693737737,0.19278155,3272.4,3271.9,2.13939]
[1736693738465,0.19278155,3272.4,3272.0,5.13934]
[1736693738627,0.19278155,3272.4,3272.1,1.050934]